bitfinex/quotes_ETHUSD_20250519
["timestamp","ask_amount","ask_price","bid_price","bid_amount"]
[1747630913425,14.0729834,2362.4,2362.3,0.91339532]
[1747630913627,15.90356904,2362.4,2362.3,0.91339532]
[1747630914241,14.0729834,2362.4,2362.3,0.91339532]
[1747630915265,4.2329834,2362.4,2362.3,0.91339532]
[1747630916776,13.08248873,2363.0,2362.3,0.91339532]
[1747630916777,11.70097542,2363.0,2362.3,0.91339532]
[1747630916992,4.23270902,2362.6,2362.3,0.91339532]
[1747630917583,4.23240062,2362.8,2362.4,9.841]
[1747630917748,4.23148782,2363.3,2362.7,5.72352842]
[1747630917943,10.7968,2363.6,2363.0,4.23189562]
[1747630917944,4.23101374,2363.5,2363.0,4.23189562]
[1747630918144,9.834,2364.0,2363.3,4.23136356]
[1747630918469,4.22959478,2364.3,2363.8,1.0336]
[1747630918666,4.22976392,2364.2,2363.9,9.841]
[1747630918977,2.06693069,2364.6,2364.0,0.55]
[1747630919203,2.33850339,2364.6,2364.0,0.55]
[1747630919373,4.22922393,2364.5,2364.0,0.55]
[1747630919694,2.06693069,2364.6,2364.0,8.55]
[1747630919997,2.06693069,2364.6,2364.3,0.55]
[1747630920159,2.06693069,2364.6,2364.4,9.841]
[1747630920360,2.06693069,2364.6,2364.5,13.18812393]
[1747630920562,4.22844244,2365.0,2364.5,9.5089]
[1747630920762,4.22870519,2364.8,2364.5,9.5089]
[1747630920966,0.04247425,2364.7,2364.3,18.278]
[1747630921297,0.04247425,2364.7,2363.9,9.841]
[1747630921298,4.23011844,2364.0,2363.9,9.841]
[1747630922350,4.23065532,2363.7,2363.6,18.61740539]
[1747630922751,4.23101332,2363.5,2363.4,9.839]
[1747630922981,4.23190859,2363.0,2362.9,9.839]
[1747630923168,4.23208768,2362.9,2362.8,0.33940539]
[1747630923364,4.27456193,2362.9,2362.8,0.33940539]
[1747630923597,4.23208768,2362.9,2362.8,0.33940539]
[1747630924176,5.07848731,2362.9,2362.8,0.33940539]
[1747630925063,5.12096156,2362.9,2362.8,0.33940539]
[1747630925268,15.97466156,2362.9,2362.8,0.33940539]
[1747630925574,4.23208768,2362.9,2362.8,0.33940539]
[1747630925903,0.04247425,2362.9,2362.6,9.84]
[1747630926080,4.23244593,2362.7,2362.6,9.84]
[1747630926464,4.23244593,2362.7,2362.3,0.91339532]
[1747630926669,4.23259461,2362.7,2362.4,9.84]
[1747630927222,4.23194298,2363.0,2362.4,9.84]
[1747630927422,0.9414,2363.6,2362.5,9.5617]
[1747630927566,4.2308455,2363.6,2362.7,8.0]
[1747630927766,0.9414,2364.3,2363.4,0.55]
[1747630927983,4.23028143,2364.0,2363.5,28.115]
[1747630928200,0.9414,2364.3,2363.6,9.84]
[1747630928404,4.22997536,2364.1,2363.6,9.84]
[1747630928620,4.22904508,2364.6,2363.7,8.55]
[1747630928908,4.23014851,2364.0,2363.7,8.55]
[1747630929258,9.817,2364.7,2363.8,9.84]
[1747630929534,4.23029738,2363.9,2363.8,9.84]
[1747630929874,4.23012139,2364.0,2363.8,9.84]
[1747630930075,4.22927245,2364.5,2363.8,9.84]
[1747630930405,4.22927245,2364.5,2363.6,8.55]
[1747630930406,0.42292725,2364.4,2363.6,8.55]
[1747630930612,4.23083432,2363.6,2363.5,18.275]
[1747630930781,4.23067049,2363.7,2363.5,18.275]
[1747630930982,12.22958169,2364.3,2363.5,18.275]
[1747630931185,12.22958169,2364.3,2363.5,18.825]
[1747630931508,4.23065532,2363.7,2363.6,9.839]
[1747630931872,4.23070939,2363.7,2363.6,9.839]
[1747630932072,4.23065532,2363.7,2363.6,9.839]
[1747630932279,4.23054749,2363.8,2363.6,9.839]
[1747630932474,4.22976059,2364.2,2363.6,9.839]
[1747630932675,4.23065532,2363.7,2363.6,9.839]
[1747630933070,4.22999771,2364.1,2363.5,18.275]
[1747630933311,4.22999771,2364.1,2363.6,9.838]
[1747630933507,4.23036327,2363.9,2363.6,9.838]
[1747630933912,4.23017681,2364.0,2363.6,9.838]
[1747630934096,4.22890214,2364.7,2363.8,0.9334]
[1747630934303,15.60461941,2364.7,2363.8,0.9334]
[1747630934508,15.60461941,2364.7,2363.8,8.9334]
[1747630934905,4.2297309,2364.3,2363.8,8.9334]
[1747630935109,4.22872561,2364.8,2363.9,0.55]
[1747630935324,4.22835349,2365.0,2364.4,8.0]
[1747630935510,4.22868741,2364.8,2364.5,9.838]
[1747630935897,4.22876389,2364.8,2364.5,9.838]
[1747630936111,0.9754,2365.2,2364.5,9.838]
[1747630936425,4.2294028,2364.4,2364.3,18.269]
[1747630936588,4.23029738,2363.9,2363.8,0.9799]
[1747630936798,4.23047635,2363.8,2363.7,9.837]
[1747630937003,4.23155044,2363.2,2363.1,0.33940539]
[1747630937226,4.27402469,2363.2,2363.1,0.33940539]
[1747630937423,6.15746699,2363.2,2363.1,0.33940539]
[1747630937631,14.15746699,2363.2,2363.1,0.33940539]
[1747630937809,14.11499274,2363.2,2363.1,0.33940539]
[1747630938218,4.23190859,2363.0,2362.9,0.4525592]
[1747630938447,4.2329834,2362.4,2362.1,9.837]
[1747630939032,4.2329834,2362.4,2362.3,0.91339532]
[1747630939525,4.2317295,2363.1,2362.3,0.91339532]
[1747630939732,4.2329834,2362.4,2362.3,0.91339532]
[1747630939932,4.23280423,2362.5,2362.3,0.91339532]
[1747630940127,4.2329834,2362.4,2362.3,0.91339532]
[1747630940331,4.27545765,2362.4,2362.3,0.91339532]
[1747630940510,4.2328206,2362.5,2362.3,0.91339532]
[1747630940707,9.798,2362.8,2362.3,10.75239532]
[1747630940933,4.2329834,2362.4,2362.3,10.75239532]
[1747630941444,4.23267263,2362.6,2362.3,10.75239532]
[1747630941637,4.23270322,2362.6,2362.3,10.75239532]
[1747630941810,4.23257369,2362.7,2362.3,10.75239532]
[1747630942008,0.9556,2363.5,2362.5,0.55]
[1747630942226,4.23198417,2363.0,2362.7,8.0]
[1747630942411,4.23280015,2362.6,2362.4,0.9711]
[1747630942629,4.23250148,2362.7,2362.5,9.84]
[1747630942953,4.23280423,2362.5,2362.4,0.9711]
[1747630943110,4.23280423,2362.5,2362.4,9.84]
[1747630943305,4.23280423,2362.5,2362.3,10.70839532]
[1747630943306,4.2329834,2362.4,2362.3,10.70839532]
[1747630943551,4.23208768,2362.9,2362.3,10.70839532]
[1747630943741,4.2329834,2362.4,2362.3,10.70839532]
[1747630944348,0.9663,2363.2,2362.4,8.0]
[1747630944656,4.23262507,2362.6,2362.4,8.0]
[1747630944834,4.23285296,2362.5,2362.3,10.70839532]
[1747630945020,14.0259327,2363.0,2362.3,10.70839532]
[1747630945221,1.40259327,2362.9,2362.3,10.70839532]
[1747630945578,4.2317295,2363.1,2362.3,10.70839532]
[1747630945846,4.2329834,2362.4,2362.3,10.70939532]
[1747630946611,4.27545765,2362.4,2362.3,0.91339532]
[1747630946821,4.2329834,2362.4,2362.3,0.91339532]
[1747630947218,4.23370025,2362.0,2361.9,0.94610882]
[1747630948421,4.23359512,2362.1,2361.9,0.94610882]
[1747630948735,0.9565,2362.5,2361.9,0.94610882]
[1747630948926,4.23289201,2362.5,2362.0,9.798]
[1747630949121,4.23370025,2362.0,2361.9,0.94610882]
[1747630949337,0.04247425,2362.6,2361.9,10.74410882]
[1747630949541,4.23345037,2362.2,2362.0,9.798]
[1747630949874,4.23370025,2362.0,2361.9,10.74410882]
[1747630950080,4.23370025,2362.0,2361.9,0.94610882]
[1747630950541,4.23352101,2362.1,2361.9,0.94610882]
[1747630950737,4.23273974,2362.6,2362.0,9.798]
[1747630950964,4.2331912,2362.3,2362.0,9.798]
[1747630951166,4.23278334,2362.6,2362.0,9.798]
[1747630951371,4.23308407,2362.4,2362.0,9.798]
[1747630951554,12.23208768,2362.9,2361.9,0.94610882]
[1747630951760,4.23262507,2362.6,2362.1,9.798]
[1747630952042,4.23370025,2362.0,2361.9,0.94610882]
[1747630952240,14.02170025,2362.0,2361.9,0.94610882]
[1747630952560,14.02070025,2362.0,2361.9,0.94610882]
[1747630952765,4.23370025,2362.0,2361.9,0.94610882]
[1747630953148,4.23359467,2362.1,2361.9,0.94610882]
[1747630953334,4.23352101,2362.1,2362.0,9.798]
[1747630953551,10.07,2362.2,2362.0,9.798]
[1747630953784,4.23352101,2362.1,2362.0,9.798]
[1747630954888,4.23370025,2362.0,2361.9,0.94610882]
[1747630956073,4.23356538,2362.1,2361.9,0.94610882]
[1747630956275,4.23370025,2362.0,2361.9,0.94610882]
[1747630956838,5.08042521,2362.0,2361.9,0.94610882]
[1747630957542,4.23370025,2362.0,2361.9,0.94610882]
[1747630958286,4.2761745,2362.0,2361.9,0.94610882]
[1747630958577,4.23370025,2362.0,2361.9,0.94610882]
[1747630959142,12.23370025,2362.0,2361.9,0.94610882]
[1747630959348,23.80690025,2362.0,2361.9,0.94610882]
[1747630959554,26.61094344,2362.0,2361.9,0.94610882]
[1747630959967,26.06094344,2362.0,2361.9,0.94610882]
[1747630960191,35.83994344,2362.0,2361.9,0.94610882]
[1747630960687,37.63994344,2362.0,2361.9,0.94610882]
[1747630960858,18.06094344,2362.0,2361.9,0.94610882]
[1747630961186,27.84094344,2362.0,2361.9,0.94610882]
[1747630961881,31.7598722,2362.0,2361.9,0.94610882]
[1747630962288,40.3098722,2362.0,2361.9,0.94610882]
[1747630962695,40.3098722,2362.0,2361.9,0.71759953]
[1747630963692,9.23323804,2361.7,2361.6,0.97882231]
[1747630963877,30.3492848,2361.7,2361.6,0.97882231]
[1747630964071,29.9015248,2361.7,2361.6,0.97882231]
[1747630964389,18.26035532,2361.3,2360.9,1.04424931]
[1747630964705,13.81619343,2361.0,2360.9,1.04424931]
[1747630964854,17.73512219,2361.0,2360.9,1.04424931]
[1747630965171,22.18412219,2361.0,2360.9,1.04424931]
[1747630965559,17.18512219,2361.0,2360.9,1.04424931]
[1747630965761,5.26619343,2361.0,2360.9,1.04424931]
[1747630965971,4.23549343,2361.0,2360.9,1.04424931]
[1747630967693,4.23441734,2361.6,2361.0,0.9745]
[1747630967877,4.23441734,2361.6,2361.1,9.804]
[1747630968108,6.69471487,2361.7,2361.0,0.9745]
[1747630968109,4.23531404,2361.1,2361.0,0.9745]
[1747630968297,10.92897423,2361.7,2361.2,9.804]
[1747630968298,6.69471487,2361.7,2361.2,9.804]
[1747630968493,9.776,2361.9,2361.4,5.1819656]
[1747630968662,4.2335191,2362.2,2361.6,4.23438871]
[1747630968873,4.23284182,2362.5,2361.4,0.9472]
[1747630968874,4.2329834,2362.4,2361.4,0.9472]
[1747630969182,4.23534055,2361.1,2361.0,1.0246]
[1747630969670,4.23549343,2361.0,2360.8,9.804]
[1747630969879,8.0,2362.0,2360.9,9.04424931]
[1747630970061,4.23442039,2361.6,2361.1,8.55]
[1747630970263,4.23513982,2361.2,2361.0,1.0203]
[1747630970507,4.23513467,2361.2,2361.1,9.803]
[1747630971065,4.23531404,2361.1,2361.0,1.0203]
[1747630971583,4.23531404,2361.1,2361.0,10.8233]
[1747630971785,4.23531404,2361.1,2361.0,9.803]
[1747630972368,4.23531404,2361.1,2360.9,1.04424931]
[1747630972593,9.771,2361.5,2360.9,10.84724931]
[1747630972793,4.23528802,2361.2,2360.9,10.84724931]
[1747630973202,4.23549343,2361.0,2360.9,1.04424931]
[1747630973503,4.23549343,2361.0,2360.9,10.81424931]
[1747630973867,4.23549343,2361.0,2360.9,1.04424931]
[1747630974081,4.65904277,2361.0,2360.9,1.04424931]
[1747630974909,4.70151702,2361.0,2360.9,1.04424931]
[1747630975112,14.77151702,2361.0,2360.9,1.04424931]
[1747630975267,14.72904277,2361.0,2360.9,1.04424931]
[1747630975476,4.23549343,2361.0,2360.9,1.04424931]
[1747630978105,4.2352947,2361.2,2360.9,1.04424931]
[1747630978406,4.23495905,2361.3,2361.0,0.9843]
[1747630978708,22.5231694,2362.3,2361.0,0.9843]
[1747630978709,4.23443736,2361.6,2361.1,14.00627717]
[1747630978912,4.23352101,2362.1,2361.5,0.9843]
[1747630979219,14.64687449,2362.7,2361.9,0.994]
[1747630979416,4.23324357,2362.3,2362.0,9.771]
[1747630979614,4.23287659,2362.5,2362.0,9.771]
[1747630980186,4.23287659,2362.5,2362.0,14.00466633]
[1747630980382,1.0111,2363.3,2362.1,22.58885255]
[1747630980584,2.06693069,2363.7,2362.9,1.0187]
[1747630980810,2.06693069,2363.7,2363.1,12.23170255]
[1747630981020,2.06693069,2363.7,2363.2,4.27376067]
[1747630981336,2.06693069,2363.7,2363.2,17.80531359]
[1747630981538,2.06693069,2363.7,2363.3,0.23605248]
[1747630981829,4.87941125,2364.1,2363.6,1.0239]
[1747630981830,0.64939574,2364.1,2363.6,1.0239]
[1747630982009,0.64939574,2364.1,2363.8,8.0]
[1747630982589,0.64939574,2364.1,2363.7,18.288]
[1747630982923,4.23101332,2363.5,2363.4,9.769]
[1747630983147,4.22934447,2364.5,2363.2,10.76]
[1747630983312,4.23011844,2364.0,2363.2,10.76]
[1747630983623,4.23033636,2363.9,2363.3,8.55]
[1747630983813,4.23034604,2363.9,2363.3,8.55]
[1747630984012,4.30571584,2364.2,2363.5,4.23098297]
[1747630984210,4.23041442,2363.9,2363.7,8.9949]
[1747630984411,4.23047635,2363.8,2363.7,0.9949]
[1747630984625,4.23101332,2363.5,2363.4,9.766]
[1747630984826,0.84605314,2363.9,2363.4,9.766]
[1747630984987,14.06080892,2364.2,2363.4,9.766]
[1747630985320,0.07590706,2364.2,2363.5,8.55]
[1747630985526,4.23033775,2363.9,2363.5,8.55]
[1747630985729,4.30582437,2364.2,2363.7,8.55]
[1747630985888,4.30582437,2364.2,2363.8,1.0168]
[1747630985889,0.07590706,2364.2,2363.8,1.0168]
[1747630986088,4.23023808,2364.0,2363.9,9.766]
[1747630987080,4.23011844,2364.0,2363.9,9.766]
[1747630987880,0.07590706,2364.2,2364.0,8.55]
[1747630988031,0.9963,2365.4,2364.2,4.7796822]
[1747630988241,0.9963,2365.4,2364.3,0.59228704]
[1747630988242,4.22797226,2365.2,2364.3,0.59228704]
[1747630988438,4.22889419,2364.7,2364.4,9.763]
[1747630988938,10.07,2365.5,2364.7,1.0099]
[1747630989134,4.22798838,2365.2,2364.9,8.0]
[1747630989365,4.22798838,2365.2,2364.8,0.04228142]
[1747630989366,4.22839336,2365.0,2364.8,8.55]
[1747630989587,4.22856079,2364.9,2364.7,1.0099]
[1747630989765,4.22792096,2365.3,2364.7,1.0099]
[1747630989766,4.22803396,2365.2,2364.8,17.763]
[1747630989968,4.22803396,2365.2,2364.9,8.0]
[1747630990181,4.22787622,2365.3,2364.9,8.0]
[1747630990454,4.22798459,2365.2,2364.9,8.0]
[1747630990856,4.22764021,2365.4,2364.9,8.0]
[1747630990857,4.22819019,2365.1,2364.9,8.0]
[1747630991102,4.65040038,2365.4,2364.9,8.0]
[1747630991312,10.07,2366.0,2365.0,0.55]
[1747630991470,4.22721571,2365.7,2365.2,8.55]
[1747630991667,4.2268984,2365.9,2365.3,9.76]
[1747630991986,4.22743606,2365.5,2365.4,28.032]
[1747630992191,4.22743606,2365.5,2365.4,18.272]
[1747630992380,4.22743606,2365.5,2365.4,28.032]
[1747630992581,0.42268984,2365.9,2365.4,28.032]
[1747630992779,4.22727439,2365.6,2365.4,28.032]
[1747630992957,4.22716256,2365.7,2365.5,0.55]
[1747630993164,4.22698921,2365.8,2365.5,0.55]
[1747630993359,4.22710596,2365.7,2365.5,0.55]
[1747630993580,4.2262545,2366.2,2365.4,18.272]
[1747630993581,4.22743606,2365.5,2365.4,18.272]
[1747630993749,4.2273362,2365.6,2365.4,28.03]
[1747630993955,4.22718611,2365.7,2365.4,28.03]
[1747630994357,4.22743606,2365.5,2365.4,28.03]
[1747630994666,4.2272671,2365.6,2365.4,28.03]
[1747630995063,4.22654268,2366.0,2365.4,28.03]
[1747630995264,4.22743606,2365.5,2365.4,18.272]
[1747630995467,4.22743606,2365.5,2365.4,28.03]
[1747630995786,4.22743606,2365.5,2365.4,18.272]
[1747630995988,4.22743606,2365.5,2365.4,28.03]
[1747630996162,4.22730305,2365.6,2365.4,28.03]
[1747630996756,4.22743606,2365.5,2365.4,18.272]
[1747630996962,4.22743606,2365.5,2365.4,28.028]
[1747630997361,4.22743606,2365.5,2365.4,18.272]
[1747630997577,4.22743606,2365.5,2365.4,28.028]
[1747630997797,4.22743606,2365.5,2365.1,0.9666]
[1747630997980,4.22815102,2365.1,2365.0,9.756]
[1747630998205,4.22904508,2364.6,2364.5,9.756]
[1747630998381,4.2294028,2364.4,2364.3,0.9964]
[1747630998604,4.22958169,2364.3,2364.2,9.756]
[1747630998777,4.22993951,2364.1,2363.9,18.264]
[1747630998978,13.96025168,2364.5,2363.9,18.264]
[1747630998979,13.95998285,2364.7,2363.9,28.02]
[1747630999177,14.99967353,2365.2,2364.0,0.9609]
[1747630999391,4.2283298,2365.0,2364.0,0.9609]
[1747630999584,4.22984821,2364.2,2364.0,0.9609]
[1747630999785,4.22993951,2364.1,2364.0,0.9609]
[1747630999990,4.22984694,2364.2,2364.0,0.9609]
[1747631000165,4.22993951,2364.1,2364.0,0.9609]
[1747631000361,4.22993951,2364.1,2363.9,18.264]
[1747631000578,4.23011844,2364.0,2363.9,18.264]
[1747631000796,4.23011844,2364.0,2363.9,28.02]
[1747631001421,4.23011844,2364.0,2363.9,18.264]
[1747631001625,4.23011844,2364.0,2363.8,9.756]
[1747631001626,4.23047635,2363.8,2363.2,19.2429]
[1747631001798,0.88848005,2364.0,2362.8,9.756]
[1747631001799,8.0,2363.6,2362.8,9.756]
[1747631002102,4.23208768,2362.9,2362.8,9.756]
[1747631002492,1.0129,2363.7,2362.6,0.9789]
[1747631002697,4.23262507,2362.6,2362.5,9.756]
[1747631003302,4.23119235,2363.4,2362.5,9.756]
[1747631003303,9.728,2363.2,2362.5,9.756]
[1747631003504,9.728,2363.2,2362.5,9.728]
[1747631003691,4.23255391,2362.7,2362.5,9.728]
[1747631003868,4.23262507,2362.6,2362.5,9.728]
[1747631004905,4.23252283,2362.7,2362.5,9.728]
[1747631005088,4.23234131,2362.8,2362.5,9.728]
[1747631005290,4.2314645,2363.3,2362.8,0.55]
[1747631005490,1.0386,2364.4,2363.1,0.55]
[1747631005681,4.23024709,2364.0,2363.4,0.55]
[1747631005888,4.23034667,2363.9,2363.5,1.0313]
[1747631006087,4.23017878,2364.0,2363.5,1.0313]
[1747631006289,4.23034946,2363.9,2363.5,1.0313]
[1747631006697,4.23049555,2363.8,2363.5,1.0313]
[1747631006888,4.23037046,2363.9,2363.5,1.0313]
[1747631008009,4.23055406,2363.8,2363.6,9.73]
[1747631008394,0.04247425,2363.7,2363.2,18.269]
[1747631008593,4.23137138,2363.3,2363.2,18.269]
[1747631009106,4.23137138,2363.3,2363.1,9.73]
[1747631009107,4.23155044,2363.2,2363.1,9.73]
[1747631009306,13.95605153,2363.5,2362.7,10.7549]
[1747631009513,9.724,2363.4,2362.7,10.7549]
[1747631009720,4.2322668,2362.8,2362.7,10.7549]
[1747631010226,4.23184003,2363.1,2362.7,10.7549]
[1747631010424,9.724,2363.4,2362.7,10.7549]
[1747631010576,0.9958,2363.7,2362.9,4.23197686]
[1747631010875,4.23148278,2363.3,2362.8,0.55]
[1747631011075,4.23129041,2363.4,2362.8,0.55]
[1747631011276,4.23089605,2363.6,2363.0,0.55]
[1747631011488,4.23083432,2363.6,2363.0,4.7819073]
[1747631011692,4.23024323,2364.0,2363.4,0.55]
[1747631011876,4.23032982,2363.9,2363.5,9.731]
[1747631012114,4.23020288,2364.0,2363.5,13.91198903]
[1747631012311,4.23020288,2364.0,2363.5,9.681]
[1747631012625,10.1459462,2364.3,2363.4,18.27]
[1747631012825,4.23083432,2363.6,2363.5,9.731]
[1747631012978,4.65391775,2363.6,2363.5,9.731]
[1747631013175,4.23101332,2363.5,2363.4,18.27]
[1747631013609,4.65391775,2363.6,2363.4,18.27]
[1747631013610,4.65394342,2363.6,2363.4,18.27]
[1747631013909,4.23101332,2363.5,2363.4,18.27]
[1747631014317,4.23101332,2363.5,2362.8,1.0076]
[1747631014625,4.23316259,2362.3,2362.2,0.33128824]
[1747631014993,4.27563684,2362.3,2362.2,0.33128824]
[1747631015195,12.27563684,2362.3,2362.2,0.33128824]
[1747631015516,13.23216259,2362.3,2362.2,0.33128824]
[1747631015688,17.33035529,2362.3,2362.2,0.33128824]
[1747631016226,27.05035529,2362.3,2362.2,0.33128824]
[1747631016585,37.67035529,2362.3,2362.2,0.33128824]
[1747631016814,37.67035529,2362.3,2362.2,0.08282206]
[1747631017317,5.80972101,2362.1,2362.0,0.11389502]
[1747631017621,5.80972101,2362.1,2360.6,1.07696281]
[1747631017622,4.23549343,2361.0,2360.6,1.07696281]
[1747631017824,13.95449343,2361.0,2360.6,1.07696281]
[1747631018197,21.95449343,2361.0,2360.6,1.07696281]
[1747631018601,32.99669343,2361.0,2360.6,1.07696281]
[1747631018919,37.09488613,2361.0,2360.6,1.07696281]
[1747631019321,27.37588613,2361.0,2360.6,1.07696281]
[1747631019619,37.09588613,2361.0,2360.6,1.07696281]
[1747631020318,37.09488613,2361.0,2360.6,1.07696281]
[1747631020681,0.9931,2361.6,2360.6,1.07696281]
[1747631020879,4.23549343,2361.0,2360.6,1.07696281]
[1747631021283,13.95749343,2361.0,2360.6,1.07696281]
[1747631021912,22.90839343,2361.0,2360.6,1.07696281]
[1747631022110,26.19386854,2361.0,2360.6,1.07696281]
[1747631022411,35.93086854,2361.0,2360.6,1.07696281]
[1747631023338,26.19186854,2361.0,2360.6,1.07696281]
[1747631023637,26.74186854,2361.0,2360.6,1.07696281]
[1747631023801,4.78603168,2360.7,2360.6,1.07696281]
[1747631024134,38.42746285,2360.7,2360.6,1.07696281]
[1747631024632,22.97743168,2360.7,2360.6,1.07696281]
[1747631024841,13.25543168,2360.7,2360.6,1.07696281]
[1747631024986,4.23597632,2360.8,2360.6,1.07696281]
[1747631025188,4.23545341,2361.1,2360.7,0.9679]
[1747631025441,4.23579125,2360.9,2360.7,10.7069]
[1747631025582,8.0,2361.1,2360.6,1.07696281]
[1747631025788,4.23603168,2360.7,2360.6,1.07696281]
[1747631026024,21.99950593,2360.7,2360.6,1.07696281]
[1747631026231,21.95703168,2360.7,2360.6,1.07696281]
[1747631026402,13.95703168,2360.7,2360.6,1.07696281]
[1747631026604,24.67826214,2360.7,2360.6,1.07696281]
[1747631028092,42.29020646,2360.7,2360.6,1.07696281]
[1747631028289,32.01920646,2360.7,2360.6,1.07696281]
[1747631028822,51.48020646,2360.7,2360.6,1.07696281]
[1747631029404,52.03020646,2360.7,2360.6,1.07696281]
[1747631030934,4.23728813,2360.0,2359.9,1.14238981]
[1747631031094,37.4123193,2360.0,2359.9,1.14238981]
[1747631033296,38.9155193,2360.0,2359.9,1.14238981]
[1747631034038,18.9015193,2360.0,2359.9,1.14238981]
[1747631034239,4.23728813,2360.0,2359.9,1.14238981]
[1747631034827,4.23701774,2360.2,2359.9,1.14238981]
[1747631035016,4.23710859,2360.1,2360.0,0.9765]
[1747631035345,6.95739341,2360.7,2360.0,0.9765]
[1747631035497,9.72,2360.3,2360.0,0.9765]
[1747631035858,4.23710859,2360.1,2360.0,0.9765]
[1747631036265,4.23728813,2360.0,2359.9,1.14238981]
[1747631037127,13.95728813,2360.0,2359.9,1.14238981]
[1747631037629,4.23728813,2360.0,2359.9,1.14238981]
[1747631038654,4.23704162,2360.2,2359.9,1.14238981]
[1747631038832,13.95560616,2360.4,2359.9,1.14238981]
[1747631039027,4.23693411,2360.2,2359.9,1.14238981]
[1747631039233,4.23728813,2360.0,2359.9,1.14238981]
[1747631040528,19.788,2360.6,2359.9,2.13378981]
[1747631040761,4.23603168,2360.7,2360.0,4.23718988]
[1747631040928,4.2358387,2360.9,2360.1,5.77844363]
[1747631041129,10.07,2361.0,2360.4,0.9603]
[1747631041331,4.23621113,2360.6,2360.5,9.722]
[1747631041543,4.23692907,2360.2,2360.1,0.9603]
[1747631041947,4.23728813,2360.0,2359.9,1.14238981]
[1747631042148,22.30595965,2360.8,2359.9,1.14238981]
[1747631042363,22.30595965,2360.8,2360.0,1.0306]
[1747631042364,4.23673728,2360.4,2360.0,1.0306]
[1747631042531,4.23673728,2360.4,2360.1,9.723]
[1747631043050,10.07,2361.2,2360.1,9.723]
[1747631043256,4.23577197,2360.9,2360.3,4.23662419]
[1747631043464,4.23607939,2360.7,2360.2,5.80054317]
[1747631043653,4.23671542,2360.4,2360.3,9.723]
[1747631043854,4.2365434,2360.5,2360.2,1.0137]
[1747631044040,13.95201275,2360.8,2360.2,10.7367]
[1747631044243,4.23587013,2360.8,2360.5,1.0196]
[1747631044447,4.23621113,2360.6,2360.5,1.0196]
[1747631044645,4.23612081,2360.7,2360.5,1.0196]
[1747631045054,9.716,2361.1,2360.5,1.0196]
[1747631045055,4.23621113,2360.6,2360.5,1.0196]
[1747631045275,4.23674956,2360.3,2360.2,0.9672]
[1747631045487,4.23661576,2360.4,2360.2,0.9672]
[1747631045665,4.23621113,2360.6,2360.2,0.9672]
[1747631045865,4.23674956,2360.3,2360.2,0.9672]
[1747631046074,4.23630761,2360.6,2360.2,0.9672]
[1747631046242,13.99160125,2361.2,2360.3,9.722]
[1747631046587,9.714,2361.4,2360.6,0.9732]
[1747631046951,4.23603168,2360.7,2360.6,0.9732]
[1747631047543,4.23561941,2361.0,2360.6,0.9732]
[1747631047879,4.23603168,2360.7,2360.6,0.9732]
[1747631048371,4.23639059,2360.5,2360.4,9.722]
[1747631048571,4.23710859,2360.1,2360.0,1.0254]
[1747631049173,0.8515076,2360.5,2360.0,1.0254]
[1747631049373,4.23728813,2360.0,2359.9,1.14238981]
[1747631049737,4.23686221,2360.3,2360.0,1.0103]
[1747631049943,4.23663937,2360.4,2360.0,10.7313]
[1747631050138,24.01723106,2360.6,2360.0,10.7313]
[1747631050139,4.23684666,2360.3,2360.0,10.7313]
[1747631050346,4.23643105,2360.5,2360.0,10.7313]
[1747631050347,4.23665791,2360.4,2360.0,10.7313]
[1747631050649,4.23710383,2360.2,2360.0,1.0103]
[1747631050864,4.23708587,2360.2,2360.1,9.95770911]
[1747631051278,4.23683798,2360.3,2360.1,9.95770911]
[1747631051483,4.23666113,2360.4,2360.1,9.721]
[1747631051698,4.23677205,2360.3,2360.1,9.721]
[1747631052356,4.23728813,2360.0,2359.9,1.14238981]
[1747631052573,4.27976238,2360.0,2359.9,1.14238981]
[1747631052744,4.23728813,2360.0,2359.9,1.14238981]
[1747631053080,5.24368813,2360.0,2359.9,1.14238981]
[1747631053240,5.24368813,2360.0,2359.9,1.13913328]
[1747631053443,27.41188083,2360.0,2359.9,1.13913328]
[1747631054188,32.41188083,2360.0,2359.9,0.42717498]
[1747631054756,8.33548083,2360.0,2359.9,0.42717498]
[1747631055053,13.94628813,2360.0,2359.9,0.42717498]
[1747631056410,13.94528813,2360.0,2359.9,0.42717498]
[1747631058073,4.23728813,2360.0,2359.9,0.42717498]
[1747631058269,13.94528813,2360.0,2359.9,0.42717498]
[1747631058711,4.23728813,2360.0,2359.9,0.42717498]
[1747631058916,9.707,2360.3,2359.9,0.42717498]
[1747631059063,9.707,2360.3,2360.0,0.9492]
[1747631059262,4.23710859,2360.1,2360.0,0.9492]
[1747631059467,4.23728813,2360.0,2359.9,0.42717498]
[1747631060004,11.6146,2360.5,2359.9,0.42717498]
[1747631060314,10.07,2360.7,2360.1,0.9708]
[1747631060477,4.23588772,2360.8,2360.3,4.23661496]
[1747631060678,0.04247425,2360.7,2360.2,0.23663789]
[1747631060881,4.23585225,2360.8,2360.2,9.95963789]
[1747631061067,4.23649147,2360.5,2360.2,0.23663789]
[1747631061273,4.23657108,2360.4,2360.2,0.23663789]
[1747631061571,4.23642024,2360.5,2360.2,9.723]
[1747631061767,4.23692907,2360.2,2360.1,0.9708]
[1747631061968,4.23728813,2360.0,2359.9,0.42717498]
[1747631062596,13.94328813,2360.0,2359.9,0.42717498]
[1747631063706,24.99058813,2360.0,2359.9,0.42717498]
[1747631063913,4.23800644,2359.6,2359.2,1.2078168]
[1747631064107,5.08559255,2359.6,2359.5,1.17510331]
[1747631064710,13.08559255,2359.6,2359.5,1.17510331]
[1747631065217,4.78854533,2359.3,2359.2,1.2078168]
[1747631065428,38.93901531,2359.3,2359.2,0.54257395]
[1747631065598,42.99473376,2359.3,2359.2,0.54257395]
[1747631066000,4.23980327,2358.6,2358.5,1.34008811]
[1747631066238,12.79034261,2358.3,2358.2,0.55965477]
[1747631066433,4.24106196,2357.9,2357.5,1.3713843]
[1747631066600,19.65672635,2357.9,2357.5,1.3713843]
[1747631066932,4.2408821,2358.0,2357.5,1.3713843]
[1747631066933,4.2409267,2358.0,2357.5,1.3713843]
[1747631067143,4.87886861,2360.0,2358.0,1.0035]
[1747631067317,0.64145861,2360.0,2358.8,1.0035]